bitfinex/quotes_ETHUSD_20251017
["timestamp","ask_amount","ask_price","bid_price","bid_amount"]
[1760696834169,0.6527,3699.9,3699.8,0.001]
[1760696834372,0.6527,3699.9,3699.4,0.001]
[1760696834584,0.4332,3699.8,3697.8,2.70431067]
[1760696834891,0.4332,3699.8,3698.1,1.728]
[1760696835089,0.4332,3699.8,3698.4,2.70380342]
[1760696835305,0.4332,3699.7,3697.8,4.43231067]
[1760696835601,0.4332,3699.8,3698.0,1.728]
[1760696835758,0.4332,3699.8,3697.7,3.1183]
[1760696835759,0.44370226,3699.7,3697.7,0.0993]
[1760696835967,0.44370226,3699.7,3698.4,2.70381468]
[1760696836289,0.4332,3699.6,3698.4,2.70385117]
[1760696836459,0.01050226,3699.5,3698.4,2.70385117]
[1760696836659,0.4332,3699.4,3698.0,2.70415575]
[1760696836890,0.44370226,3699.3,3697.3,0.1003]
[1760696837092,0.01050226,3699.2,3697.5,2.70446781]
[1760696837284,0.4332,3699.1,3697.5,2.70446501]
[1760696837604,0.2195,3697.6,3695.7,0.1003]
[1760696837759,0.01050226,3697.5,3695.7,0.1003]
[1760696837963,0.01050226,3697.5,3696.5,2.70520549]
[1760696838171,0.4332,3697.4,3695.0,0.1003]
[1760696838494,0.01050226,3697.3,3695.4,2.70604422]
[1760696838818,0.4332,3697.2,3695.0,0.1003]
[1760696839022,0.01050226,3697.1,3695.7,2.70580905]
[1760696839302,0.4332,3697.2,3696.1,2.70549812]
[1760696839303,0.01050226,3697.0,3696.1,2.70549812]
[1760696839507,0.4332,3696.9,3695.0,0.1003]
[1760696839720,0.4332,3696.9,3694.4,0.001]
[1760696839721,2.71561284,3696.8,3694.5,2.70672621]
[1760696839872,2.71561284,3696.8,3694.4,0.001]
[1760696839873,2.70539658,3696.4,3694.4,0.001]
[1760696840069,0.4332,3696.7,3695.1,2.70626475]
[1760696840323,0.4332,3696.6,3694.4,0.001]
[1760696840616,0.4332,3696.6,3694.4,0.65235328]
[1760696840785,0.01050226,3696.5,3695.5,2.70593629]
[1760696840987,0.4332,3696.6,3695.9,2.70564584]
[1760696841318,0.01050226,3696.5,3694.8,4.53478401]
[1760696841495,0.04716771,3696.9,3695.3,0.6336]
[1760696841703,0.4708,3697.3,3695.5,0.6336]
[1760696841870,0.01050226,3698.9,3696.2,2.3616]
[1760696842071,0.04715795,3698.3,3696.6,2.70515772]
[1760696842300,0.04715795,3698.3,3697.2,2.70474877]
[1760696842488,0.04715795,3698.3,3696.5,2.70525811]
[1760696842489,0.21817343,3698.0,3697.3,2.7046735]
[1760696842691,0.24630226,3697.9,3697.2,2.70472988]
[1760696842891,0.24630226,3697.9,3696.6,0.1352]
[1760696843091,0.24630226,3697.9,3694.7,2.98972079]
[1760696843092,0.24630226,3697.9,3695.6,2.70592055]
[1760696843298,0.24630226,3697.9,3696.1,1.728]
[1760696843617,0.04715815,3697.8,3696.1,2.70549586]
[1760696843820,2.70446785,3697.6,3695.5,2.70593795]
[1760696843972,0.48130226,3697.5,3695.8,2.70577313]
[1760696844179,0.4708,3697.4,3695.4,0.1352]
[1760696844373,0.42439796,3697.1,3695.4,1.728]
[1760696844682,0.4708,3697.0,3695.4,1.728]
[1760696844915,0.4708,3696.9,3694.9,0.1352]
[1760696845234,0.01050226,3696.8,3694.9,2.70636721]
[1760696845372,0.01050226,3696.8,3694.4,0.001]
[1760696845373,0.4708,3696.7,3694.4,0.001]
[1760696845601,0.01050226,3696.6,3694.4,0.001]
[1760696845806,0.42449684,3696.4,3694.4,0.001]
[1760696846018,0.48130226,3696.3,3694.4,0.001]
[1760696846180,2.70548538,3696.2,3694.4,0.001]
[1760696846379,0.01050226,3696.1,3694.4,0.001]
[1760696846598,0.4708,3696.0,3694.4,0.001]
[1760696846812,0.04718307,3695.7,3694.4,0.001]
[1760696847014,0.47173305,3695.7,3694.4,0.001]
[1760696847317,0.47173305,3695.7,3694.6,2.70663779]
[1760696847479,0.42454998,3695.7,3694.7,0.02706579]
[1760696847826,2.70445761,3697.6,3694.4,1.729]
[1760696847827,0.24630226,3695.6,3694.4,1.729]
[1760696847989,0.24630226,3695.6,3694.6,1.728]
[1760696848191,0.4708,3695.9,3694.8,2.70647931]
[1760696848499,0.4708,3695.9,3694.5,2.70672621]
[1760696848500,0.42451773,3696.0,3694.5,0.6336]
[1760696848819,0.24630226,3695.9,3695.1,2.70623629]
[1760696848981,0.24630226,3695.9,3695.2,2.70619431]
[1760696849177,0.01050226,3695.9,3695.2,2.70619431]
[1760696849390,0.01050226,3695.9,3694.4,0.001]
[1760696849599,0.2358,3695.8,3694.8,2.7064548]
[1760696849796,0.01050226,3695.9,3695.1,2.70623234]
[1760696850004,0.24630226,3695.9,3694.5,2.70672621]
[1760696850226,0.24630226,3695.9,3694.8,2.70650417]
[1760696850414,0.24630226,3695.9,3694.9,2.7064123]
[1760696850595,0.24630226,3695.9,3695.0,2.70635462]
[1760696850791,0.24630226,3695.9,3694.8,1.728]
[1760696851195,0.4708,3695.8,3694.6,1.728]
[1760696851429,0.4708,3697.7,3694.6,1.8304]
[1760696851625,0.04717465,3696.6,3694.7,5.39066579]
[1760696851826,0.04717465,3696.6,3694.6,0.1024]
[1760696851827,0.01050226,3696.5,3695.1,1.728]
[1760696852011,0.04717465,3696.6,3695.2,0.02706213]
[1760696852331,0.04717465,3696.6,3694.8,2.70650644]
[1760696852541,0.89529169,3697.2,3696.3,2.70534372]
[1760696852743,0.89529169,3697.2,3695.5,0.1024]
[1760696852941,0.42449169,3697.2,3695.8,0.6336]
[1760696853231,0.42449169,3697.2,3696.6,2.70511781]
[1760696853433,0.01050226,3697.7,3696.1,2.7055545]
[1760696853644,0.45974012,3697.8,3696.9,2.70490985]
[1760696853798,0.45974012,3697.8,3696.8,2.70501914]
[1760696854239,0.2358,3697.9,3696.9,2.70495481]
[1760696854497,0.2358,3697.9,3697.2,2.70474659]
[1760696854807,0.2358,3697.9,3696.2,0.1135]
[1760696854808,0.42432339,3698.0,3697.1,0.1135]
[1760696855128,0.42432339,3698.0,3697.8,2.70423807]
[1760696855303,0.42432339,3698.0,3697.9,2.70423754]
[1760696855512,0.2358,3699.0,3698.2,2.70395369]
[1760696855707,0.04713895,3699.2,3697.5,2.70453008]
[1760696856028,0.4708,3699.3,3697.3,0.1135]
[1760696856196,0.002,3698.4,3697.8,2.70428825]
[1760696856400,0.002,3698.4,3697.6,2.70442869]
[1760696856602,0.002,3698.4,3697.8,2.70424051]
[1760696856798,0.002,3698.4,3697.4,2.70458422]
[1760696857007,0.002,3698.4,3697.1,0.1135]
[1760696857236,0.002,3698.4,3697.6,2.70439156]
[1760696857434,0.002,3698.4,3697.2,0.6336]
[1760696857814,0.002,3698.4,3695.7,0.1135]
[1760696857815,0.2358,3697.3,3695.7,0.1135]
[1760696858032,0.2358,3697.3,3695.0,0.001]
[1760696858033,0.4708,3697.2,3695.0,0.001]
[1760696858243,0.2358,3695.9,3695.0,0.001]
[1760696858609,1.9966,3695.9,3695.0,0.001]
[1760696858805,1.728,3695.7,3693.3,0.1155]
[1760696859010,0.2358,3694.5,3693.3,0.1155]
[1760696859217,0.2358,3694.5,3690.7,16.23787596]
[1760696859533,2.3616,3694.0,3691.3,0.1195]
[1760696859735,0.7066,3693.9,3691.3,0.1195]
[1760696860049,0.04720681,3694.4,3691.9,2.02238]
[1760696860204,0.04720681,3694.4,3691.9,0.1195]
[1760696860404,0.04720681,3694.4,3692.0,0.02708559]
[1760696860605,0.04720681,3694.4,3692.5,1.728]
[1760696860843,0.04720681,3694.4,3693.2,2.70761321]
[1760696861015,0.04720681,3694.4,3692.9,1.728]
[1760696861340,0.4708,3694.3,3691.8,0.1195]
[1760696861636,0.4708,3694.3,3692.4,2.70822432]
[1760696861854,0.4708,3694.3,3691.8,0.1195]
[1760696862021,0.04720228,3694.0,3691.8,0.1195]
[1760696862221,0.2358,3693.9,3692.3,2.70826791]
[1760696862416,0.2358,3693.9,3692.3,2.7082775]
[1760696862632,0.2358,3693.9,3692.3,2.70827534]
[1760696862839,0.2358,3693.9,3692.0,1.728]
[1760696862840,0.2358,3693.9,3692.9,2.70786976]
[1760696863036,0.2358,3694.5,3692.6,0.1195]
[1760696863351,0.04719995,3694.5,3693.8,2.70721549]
[1760696863556,0.04719995,3694.5,3692.6,0.1195]
[1760696863557,0.4708,3694.5,3692.9,2.70783988]
[1760696863758,0.4708,3694.5,3693.0,2.70776512]
[1760696863958,0.2358,3694.9,3693.5,2.70744666]
[1760696864124,0.7066,3694.9,3692.8,1.728]
[1760696864326,0.7066,3694.9,3692.0,0.1195]
[1760696864327,0.4708,3694.8,3692.0,0.1195]
[1760696864630,0.4708,3694.7,3692.6,2.70806185]
[1760696864839,0.4708,3694.6,3692.0,0.14658558]
[1760696865153,0.51800075,3694.6,3692.4,2.3616]
[1760696865354,0.51800075,3694.6,3692.0,0.1195]
[1760696865355,0.4708,3694.5,3692.0,0.1195]
[1760696865559,2.198,3694.5,3691.3,0.239]
[1760696865713,2.70704503,3694.1,3691.4,2.70899929]
[1760696865912,2.70687274,3694.3,3691.8,2.70867416]
[1760696866127,2.70702679,3694.1,3692.2,2.70838944]
[1760696866350,0.04721011,3693.8,3692.1,2.70846679]
[1760696866555,2.94312587,3693.7,3691.8,2.70869728]
[1760696866851,0.2358,3693.7,3691.5,2.70887769]
[1760696867060,0.04721011,3693.8,3691.6,0.14738852]
[1760696867261,0.2358,3693.9,3692.5,2.7081703]
[1760696867467,0.2358,3693.9,3691.9,2.70857283]
[1760696867759,0.2358,3693.9,3691.6,0.1203]
[1760696867760,0.4708,3693.8,3691.6,0.1203]
[1760696868361,0.4708,3693.8,3692.4,2.70826291]
[1760696868560,0.4708,3693.8,3691.7,2.70877915]
[1760696868561,3.17809816,3693.8,3691.7,2.70877915]
[1760696868864,0.04720807,3693.5,3691.9,0.6336]
[1760696869010,0.04720807,3693.5,3691.8,0.1203]
[1760696869234,0.04720807,3693.5,3691.4,0.6336]
[1760696869235,0.4708,3693.4,3691.4,0.6336]
[1760696869449,0.04720807,3693.5,3691.6,4.42714]
[1760696869628,0.04720807,3693.5,3691.5,2.85627995]
[1760696869629,0.4708,3694.2,3692.7,2.70804089]
[1760696869955,0.04720357,3694.4,3692.4,1.728]
[1760696870157,0.04720357,3694.4,3692.8,0.1203]
[1760696870361,0.04720357,3694.4,3693.5,2.7074441]
[1760696870652,0.2358,3694.9,3693.9,2.70715954]
[1760696870852,0.0015,3695.0,3693.5,1.728]
[1760696871156,0.0015,3695.0,3693.6,0.1203]
[1760696871365,0.0015,3695.0,3694.9,2.70643319]
[1760696871661,0.0015,3695.0,3694.1,2.70696076]
[1760696871991,0.0015,3695.0,3694.9,3.34003319]
[1760696872169,0.0015,3695.0,3694.9,5.06803319]
[1760696872473,0.2146,3696.8,3695.1,0.6336]
[1760696872655,0.2146,3696.8,3695.3,1.728]
[1760696872851,0.2146,3696.9,3695.5,1.728]
[1760696873183,0.4669,3696.8,3694.7,0.1188]
[1760696873350,0.4669,3696.8,3694.2,0.1188]
[1760696873548,0.4669,3696.8,3694.3,0.02706872]
[1760696873855,0.4669,3696.8,3694.7,2.70657969]
[1760696873856,0.04717678,3696.6,3694.7,2.70657969]
[1760696874184,0.04717678,3696.6,3694.9,0.6336]
[1760696874389,0.04717678,3696.6,3695.0,1.75506359]
[1760696874601,0.04717678,3696.6,3694.8,0.1188]
[1760696874952,0.04717678,3696.6,3694.8,1.728]
[1760696875154,0.04717678,3696.6,3695.4,2.70604162]
[1760696875353,0.04717678,3696.6,3695.0,0.6336]
[1760696875589,0.4669,3696.7,3695.0,0.6336]
[1760696875763,2.70460226,3697.5,3695.2,0.6336]
[1760696875764,0.4669,3697.5,3695.2,0.6336]
[1760696875958,0.4669,3697.5,3696.2,2.70547375]
[1760696876208,0.2146,3697.6,3695.5,0.6336]
[1760696876209,0.2146,3697.6,3695.9,2.70570091]
[1760696876502,0.4669,3698.1,3696.6,2.70517215]
[1760696876655,0.4669,3698.1,3696.9,2.70493521]
[1760696876856,0.4669,3698.1,3696.3,0.6336]
[1760696877060,0.4669,3698.6,3696.5,0.6336]
[1760696877288,0.2146,3698.7,3697.5,2.7044755]
[1760696877487,0.4669,3698.6,3697.3,2.704668]
[1760696877693,0.4669,3698.6,3696.6,0.1188]
[1760696877890,0.4669,3698.6,3696.8,2.70503199]
[1760696878066,0.4669,3698.6,3696.5,1.728]
[1760696878067,0.1352,3697.2,3696.5,1.8632]
[1760696878264,0.4669,3698.6,3696.6,0.6336]
[1760696878515,0.04715253,3698.6,3696.2,0.6336]
[1760696878672,2.70401817,3698.2,3695.7,0.6336]
[1760696878856,0.4669,3698.3,3695.6,0.1188]
[1760696878857,2.70431247,3697.8,3695.6,0.1188]
[1760696879059,0.6815,3697.7,3695.7,2.70579276]
[1760696879384,0.6815,3697.7,3695.8,1.728]
[1760696879590,0.6815,3697.7,3695.6,0.6336]
[1760696879798,0.04716348,3697.3,3696.3,2.70534595]
[1760696879960,0.04716348,3697.3,3696.0,2.70557623]
[1760696880164,0.04716348,3697.3,3695.8,2.70577412]
[1760696880165,0.04716348,3697.3,3695.8,1.728]
[1760696880475,0.6815,3697.7,3696.2,2.70548028]
[1760696880476,0.2146,3697.7,3696.2,2.70548028]
[1760696880793,0.2146,3697.7,3695.8,0.1188]
[1760696880794,0.2146,3697.7,3696.4,2.70531981]
[1760696880963,0.2146,3697.7,3696.3,2.70539654]
[1760696881162,0.4669,3697.6,3695.1,2.82508188]
[1760696881359,0.4669,3697.5,3695.2,0.6336]
[1760696881565,2.70488841,3697.1,3695.2,2.70615887]
[1760696881795,0.4669,3697.0,3695.3,2.70606726]
[1760696882007,0.2146,3696.9,3695.3,2.70606726]
[1760696882316,0.4669,3698.1,3695.6,1.728]
[1760696882529,0.2358,3699.0,3695.9,0.6336]
[1760696882530,0.04716122,3698.3,3695.9,0.6336]
[1760696882716,0.04716122,3698.3,3696.1,2.3616]
[1760696882861,0.2358,3699.0,3696.7,0.6336]
[1760696883065,0.0471518,3699.1,3698.3,0.1188]
[1760696883266,0.2235,3698.5,3696.6,0.2376]
[1760696883464,2.70394505,3698.3,3696.6,0.1188]
[1760696883665,0.04914663,3698.4,3695.7,0.1188]
[1760696883666,0.6336,3698.1,3695.7,0.1188]
[1760696883891,0.4623,3698.2,3695.8,2.70570584]
[1760696883892,2.70440338,3697.7,3695.8,2.70570584]
[1760696884092,0.4623,3698.0,3695.7,0.1188]
[1760696884093,0.6858,3697.6,3695.7,0.1188]
[1760696884404,0.6858,3697.6,3695.3,2.82488504]
[1760696884707,2.70499071,3696.9,3694.9,0.001]
[1760696884907,0.6336,3697.3,3694.9,0.001]
[1760696885103,0.6858,3696.8,3695.0,2.70629697]
[1760696885304,0.6858,3696.8,3695.1,0.02706286]
[1760696885605,0.4623,3697.5,3695.5,3.33959377]
[1760696885815,0.4623,3697.5,3695.2,0.1188]
[1760696885816,0.2235,3697.6,3695.6,0.1188]
[1760696885972,0.2235,3698.5,3695.6,0.1188]
[1760696885973,0.04716164,3697.4,3696.0,0.6336]
[1760696886306,0.2235,3698.5,3696.3,2.70540811]
[1760696886479,0.04715483,3698.3,3696.7,2.70509983]
[1760696886678,0.04715483,3698.3,3696.5,3.33886173]
[1760696887033,0.04715483,3698.3,3696.9,2.70496817]
[1760696887197,0.4623,3698.2,3696.0,0.6336]
[1760696887532,0.4623,3698.2,3696.2,1.728]
[1760696887734,0.4623,3698.2,3696.9,2.70489595]
[1760696887933,0.4623,3698.2,3696.3,2.70540811]
[1760696887934,0.4623,3698.2,3696.3,0.1188]
[1760696888113,0.4623,3698.2,3696.1,0.6336]
[1760696888311,0.4623,3698.2,3696.7,2.70504226]
[1760696888312,0.1352,3697.1,3696.7,2.70504226]
[1760696888521,0.2235,3697.8,3696.4,2.70528436]
[1760696888844,2.7039957,3698.3,3695.7,2.70579926]
[1760696888845,0.04715503,3698.3,3697.1,2.70476453]
[1760696889002,0.04715503,3698.3,3696.5,0.1188]
[1760696889201,0.04635503,3698.3,3697.1,2.70477758]
[1760696889533,0.04635503,3698.3,3696.5,0.1188]
[1760696889534,0.04635503,3698.3,3696.6,2.70518855]
[1760696889732,0.04635503,3698.3,3696.8,2.70499672]
[1760696890302,0.04635503,3698.3,3696.5,0.1188]
[1760696890500,0.4623,3698.2,3696.2,2.7054813]
[1760696890701,0.04635503,3698.3,3696.4,0.6336]
[1760696890936,0.04635503,3698.3,3697.1,2.70476078]
[1760696891336,0.04635503,3698.3,3696.5,0.1188]
[1760696891743,0.04635503,3698.3,3696.9,2.7049127]
[1760696892038,0.04635503,3698.3,3697.0,2.70488532]
[1760696892234,0.04635503,3698.3,3696.6,0.6336]
[1760696892434,0.04635503,3698.3,3696.7,0.02705115]
[1760696892738,0.04635503,3698.3,3697.2,2.70474822]
[1760696892952,0.04635503,3698.3,3697.3,0.02704676]
[1760696893244,0.4623,3698.8,3696.8,0.1188]
[1760696893245,0.04714738,3698.7,3697.2,2.70472825]
[1760696893440,0.002,3698.3,3697.4,2.70460055]
[1760696893650,0.002,3698.3,3697.5,0.1458453]
[1760696893844,0.002,3698.3,3698.2,2.82281817]
[1760696895043,0.002,3698.3,3698.2,5.21145835]
[1760696895247,0.002,3698.3,3698.2,4.55081817]
[1760696895748,0.002,3698.3,3698.2,1.8468]
[1760696896049,0.4643,3698.3,3696.3,0.1188]
[1760696896252,0.4643,3698.3,3696.4,0.1188]
[1760696896449,0.51145527,3698.3,3696.0,0.1188]
[1760696896614,2.70409501,3698.1,3696.0,2.82439688]
[1760696896947,2.70423754,3697.9,3696.0,0.1188]
[1760696897146,0.6858,3697.8,3696.0,2.8244178]
[1760696897352,0.6858,3697.8,3695.5,0.1188]
[1760696897353,0.4623,3697.7,3695.5,0.1188]
[1760696897652,2.70446434,3697.6,3695.7,2.70578435]
[1760696897837,2.70446434,3697.6,3695.5,2.82476019]
[1760696897838,0.0471595,3697.2,3695.5,0.1188]
[1760696898022,0.0471595,3697.2,3696.1,2.70553949]
[1760696898224,0.0471595,3697.2,3695.0,0.001]
[1760696898225,0.4623,3697.1,3695.2,0.1188]
[1760696898551,0.4623,3697.1,3695.6,2.70586633]
[1760696898738,0.4623,3697.1,3696.0,2.70557218]
[1760696898939,0.2235,3697.8,3696.1,0.02705554]
[1760696898940,0.1352,3696.5,3696.1,0.02705554]
[1760696899139,0.4623,3698.2,3696.3,3.33895095]
[1760696899326,0.1352,3697.2,3696.6,0.1352]
[1760696899528,0.04715678,3698.1,3697.2,2.70468622]
[1760696899730,0.1352,3697.3,3697.2,2.70468622]
[1760696899932,0.4623,3699.1,3697.4,2.7045946]
[1760696900125,0.1352,3697.6,3697.5,2.70453008]
[1760696900638,0.2235,3699.6,3698.1,2.70401839]
[1760696900956,0.04714452,3699.2,3698.0,2.70416441]
[1760696901178,0.04714452,3699.2,3697.8,0.1352]
[1760696901352,0.1364,3698.4,3697.2,1.728]
[1760696901556,0.1352,3698.1,3697.6,2.70443358]
[1760696901755,0.1352,3698.1,3697.5,4.56772448]
[1760696901922,0.1352,3698.1,3697.9,2.70422626]
[1760696902129,0.1352,3698.1,3697.8,2.70430182]
[1760696902334,0.1352,3698.1,3697.5,0.1352]
[1760696902537,0.002,3698.4,3698.2,2.70401817]
[1760696902755,0.1364,3698.4,3698.0,2.70410268]
[1760696902967,0.1364,3698.4,3697.9,2.70418802]
[1760696903165,0.1364,3698.4,3697.8,0.1352]
[1760696903364,0.002,3698.4,3697.3,0.1188]
[1760696903573,0.002,3698.4,3698.2,2.70401817]
[1760696903732,0.002,3698.4,3698.2,4.45905835]
[1760696903932,0.002,3698.4,3698.2,5.18441817]
[1760696904142,0.4603,3700.4,3698.6,2.70372573]
[1760696904763,0.4603,3700.4,3698.6,4.43172573]
[1760696905067,0.2282,3700.2,3698.6,3.45212573]
[1760696905230,0.4603,3700.7,3698.6,5.18012573]
[1760696905550,0.4603,3700.3,3698.6,5.18012573]
[1760696906660,0.6838,3701.0,3698.6,5.18012573]
[1760696906985,0.4603,3701.5,3699.2,2.70328719]
[1760696907147,0.4603,3701.5,3699.3,7.67682846]
[1760696907475,0.4603,3701.4,3699.9,1.728]
[1760696907783,0.4603,3701.4,3699.5,2.70299501]
[1760696907959,0.04711062,3701.6,3699.3,0.1148]
[1760696907960,0.4603,3701.3,3699.3,0.1148]
[1760696908270,0.4603,3701.3,3699.5,1.728]
[1760696908564,0.04711497,3701.0,3699.3,0.1148]
[1760696908859,0.6885,3700.9,3699.4,2.70311767]
[1760696909048,0.6885,3700.9,3699.3,0.1148]
[1760696909462,0.6885,3700.9,3699.7,2.70286527]
[1760696909671,0.2282,3699.8,3698.5,0.1148]
[1760696909881,0.4603,3699.7,3698.2,2.70401115]
[1760696910191,0.4603,3699.7,3698.3,2.70390708]
[1760696910345,0.4603,3699.7,3698.0,2.81895744]
[1760696910545,0.4603,3699.7,3698.0,0.1148]
[1760696910751,0.4603,3699.7,3698.0,2.70414001]
[1760696910964,0.4603,3699.6,3697.9,2.70422566]
[1760696911276,0.50743416,3699.5,3697.9,2.70422566]
[1760696911482,0.50743416,3699.5,3697.4,0.1148]
[1760696911483,0.4603,3699.4,3696.9,0.1148]
[1760696911701,0.4603,3699.4,3697.2,2.70468793]
[1760696911991,0.4603,3699.3,3696.8,2.70502678]
[1760696912151,0.4603,3699.2,3697.6,0.001]
[1760696912355,2.70363597,3698.8,3697.6,0.001]
[1760696912549,0.04714752,3698.9,3697.6,0.001]
[1760696912752,0.6885,3698.7,3697.6,0.001]
[1760696913071,0.6877,3698.7,3697.6,0.001]
[1760696913311,2.70372573,3698.6,3697.6,0.001]
[1760696913472,4.43181396,3698.5,3697.6,0.001]
[1760696913672,4.89211396,3698.5,3697.6,0.001]
[1760696913980,0.04715271,3698.3,3697.6,0.001]
[1760696914181,1.728,3698.1,3697.6,0.001]
[1760696914351,0.1352,3697.6,3697.3,0.001]
[1760696914561,2.70453377,3697.5,3696.9,0.001]
[1760696914789,0.4603,3697.5,3695.3,0.1352]
[1760696914961,0.1352,3695.5,3695.4,2.706067]
[1760696915379,0.1352,3695.5,3694.9,1.8642]
[1760696915380,0.1352,3695.5,3694.9,0.1362]
[1760696915687,0.4603,3695.4,3694.9,0.001]
[1760696916051,0.4603,3695.3,3694.9,0.001]
[1760696916256,0.4603,3695.3,3694.6,0.001]
[1760696916511,0.2282,3694.7,3693.0,2.70779605]
[1760696916670,0.4603,3694.6,3693.1,2.70768055]
[1760696916999,0.4603,3694.6,3692.8,0.1206]
[1760696917213,2.7071076,3694.0,3692.1,0.1216]
[1760696917413,0.4603,3693.9,3692.1,0.1216]
[1760696917571,0.04720479,3693.6,3691.7,0.1216]
[1760696917767,0.4603,3693.5,3691.7,0.1216]
[1760696917994,0.04720479,3693.6,3691.8,0.02708705]
[1760696918193,0.04720479,3693.6,3691.7,0.2432]
[1760696918194,0.04720479,3693.6,3692.6,2.70809982]
[1760696918508,0.04720479,3693.6,3692.2,0.1216]
[1760696918673,0.4603,3694.5,3692.2,0.1216]
[1760696918868,0.04720467,3694.2,3692.2,0.1216]
[1760696919115,0.4603,3694.1,3691.7,0.2432]
[1760696919300,0.4603,3694.1,3691.7,0.1216]
[1760696919470,0.4603,3694.1,3692.4,2.70820314]
[1760696919674,0.4603,3694.1,3691.8,0.02708705]
[1760696919868,0.4603,3694.1,3691.7,0.1216]
[1760696920074,0.04720808,3693.7,3691.8,2.70870578]
[1760696920366,0.4603,3693.6,3692.5,2.70812291]
[1760696920590,0.4603,3693.6,3691.7,0.2432]
[1760696920591,0.4603,3693.6,3691.7,0.1216]
[1760696920819,0.4603,3693.6,3692.3,2.70831826]
[1760696920993,0.4603,3693.6,3691.7,0.1216]
[1760696921409,0.04721161,3693.2,3691.7,0.1216]
[1760696921709,0.4603,3693.1,3691.3,0.1216]
[1760696921917,0.04721161,3693.2,3691.4,0.1216]
[1760696922075,0.2282,3694.9,3693.1,2.70775229]
[1760696922271,0.04720154,3695.3,3693.7,0.6336]
[1760696922472,0.4603,3695.7,3693.8,0.66067239]
[1760696922717,0.50748874,3695.7,3693.6,0.1216]
[1760696923081,0.50748874,3695.7,3693.7,0.6336]
[1760696923278,0.50748874,3695.7,3694.0,2.70709258]
[1760696923498,0.04718874,3695.7,3693.0,1.728]
[1760696923699,0.4603,3695.6,3692.9,0.1216]
[1760696923906,0.4603,3695.6,3693.9,2.70716242]
[1760696924112,0.04718513,3695.2,3694.0,0.02707092]
[1760696924294,0.4603,3696.5,3695.0,2.7063447]
[1760696924630,0.4603,3696.5,3695.6,2.70592018]
[1760696924784,0.4603,3696.5,3695.3,2.70613344]
[1760696925111,0.4603,3696.5,3695.1,0.1216]
[1760696925479,0.4603,3696.5,3694.6,0.1216]
[1760696925722,0.1352,3694.9,3694.3,0.1352]
[1760696925892,0.2282,3695.5,3694.4,2.70676977]
[1760696926090,0.2282,3695.5,3694.2,0.1216]
[1760696926397,0.4603,3695.4,3693.7,0.1216]
[1760696926800,0.4603,3695.4,3693.7,2.82885044]
[1760696927110,0.4603,3695.3,3693.8,2.7072239]
[1760696927314,0.4603,3695.3,3693.7,0.1216]
[1760696927611,2.70443132,3697.7,3693.7,0.1216]
[1760696927612,0.2282,3695.7,3694.0,0.6336]
[1760696927786,0.2282,3695.7,3693.7,0.1216]
[1760696927787,3.16625271,3695.6,3693.7,2.70725893]
[1760696927996,0.04718806,3695.2,3693.3,0.1216]
[1760696928221,0.4603,3695.1,3693.3,0.1216]
[1760696928693,0.4603,3695.1,3693.3,2.70760408]
[1760696928894,0.4603,3695.0,3692.9,0.1216]
[1760696929080,0.2282,3694.9,3692.9,0.1216]
[1760696929424,0.27539222,3694.9,3693.3,1.728]
[1760696929584,0.27539222,3694.9,3693.8,2.70716958]
[1760696929783,0.27539222,3694.9,3693.8,2.70718189]
[1760696930001,0.27539222,3694.9,3693.9,2.70715673]
[1760696930203,0.27539222,3694.9,3693.8,2.70719948]
[1760696930403,0.27539222,3694.9,3693.7,2.70730027]
[1760696930606,0.27539222,3694.9,3693.4,1.728]
[1760696930830,0.27539222,3694.9,3693.0,0.6336]
[1760696930831,0.2282,3695.7,3693.6,0.6336]
[1760696931120,0.2282,3693.7,3692.0,0.1216]
[1760696931420,0.4566,3694.5,3692.3,2.70833897]
[1760696931620,0.2282,3695.0,3693.0,1.728]
[1760696931917,0.4566,3694.9,3692.6,0.7552]
[1760696932334,0.4566,3694.9,3693.5,2.70739491]
[1760696932631,0.4566,3694.9,3693.6,2.7073695]
[1760696933318,0.04719185,3694.7,3693.2,2.70766539]
[1760696933518,0.04719185,3694.7,3692.1,0.6346]
[1760696933519,0.04719185,3694.7,3692.1,0.001]
[1760696933840,0.4566,3694.6,3692.9,2.70786505]
[1760696934011,0.4566,3694.6,3692.1,0.001]
[1760696934012,0.4566,3694.6,3692.3,2.70833897]
[1760696934215,0.4566,3694.6,3693.1,2.70769364]
[1760696934536,0.50379861,3694.6,3693.2,2.70767159]
[1760696934738,0.50379861,3694.6,3693.1,2.70773299]
[1760696935142,0.50379861,3694.6,3693.3,2.70754778]
[1760696935441,0.50379861,3694.6,3693.4,0.1216]
[1760696935442,0.04719861,3694.6,3693.4,0.1216]
[1760696935647,0.002,3695.1,3694.1,2.70700345]
[1760696935948,0.002,3695.1,3693.5,0.66067459]
[1760696935949,0.002,3695.1,3693.8,2.84243915]
[1760696936101,0.1352,3693.5,3692.2,0.1216]
[1760696936301,0.1352,3693.5,3693.0,2.70782561]
[1760696936538,0.2303,3694.6,3692.7,1.728]
[1760696936842,0.4566,3694.5,3692.1,0.1226]
[1760696936999,0.4566,3694.5,3692.8,2.70793872]
[1760696937202,0.4566,3694.5,3693.0,2.7078129]
[1760696937403,0.4566,3694.5,3692.2,0.6336]
[1760696937630,0.4566,3694.5,3692.7,2.7080456]
[1760696937931,0.4566,3694.5,3692.6,0.1216]
[1760696937932,0.2303,3694.6,3693.7,2.70730769]
[1760696938142,0.2303,3694.6,3693.1,2.70774974]
[1760696938439,0.04719901,3694.7,3693.1,2.70775229]
[1760696938629,0.4566,3695.0,3693.0,0.1216]
[1760696938804,0.27749412,3694.9,3693.8,2.70722067]
[1760696939010,0.27749412,3694.9,3693.0,0.1216]
[1760696939011,0.04719412,3694.9,3693.4,1.728]
[1760696939216,0.04719412,3694.9,3693.8,2.70723628]
[1760696939540,0.002,3695.1,3693.8,2.70723628]
[1760696939904,0.002,3695.1,3693.7,2.70730446]
[1760696940106,0.002,3695.1,3693.4,0.1216]
[1760696940417,0.002,3695.1,3693.6,0.6336]